bitfinex/quotes_ETHUSD_20260110
["timestamp","ask_amount","ask_price","bid_price","bid_amount"]
[1768043278638,0.5567339,3099.4,3098.8,0.00080552]
[1768043278938,0.3027339,3099.3,3098.8,0.00080552]
[1768043279234,0.254,3099.4,3098.8,0.00080552]
[1768043279436,0.30273219,3099.3,3098.8,0.00080552]
[1768043279640,0.254,3099.4,3098.8,0.00080552]
[1768043279826,0.30273219,3099.3,3098.8,0.00080552]
[1768043280028,1.20865957,3099.4,3098.8,0.00080552]
[1768043280217,0.30273173,3099.3,3098.8,0.00080552]
[1768043280538,1.20865957,3099.4,3098.8,0.00080552]
[1768043280702,0.30273178,3099.3,3098.8,0.00080552]
[1768043280903,0.95465957,3099.3,3098.8,0.00080552]
[1768043289347,0.95465957,3099.3,3099.1,0.001]
[1768043289510,0.95465957,3099.3,3098.8,0.00080552]
[1768043293546,0.3028117,3099.2,3098.8,0.00080552]
[1768043293745,0.95465957,3099.3,3098.8,0.00080552]
[1768043293924,0.3028117,3099.2,3098.8,0.00080552]
[1768043294126,0.95465957,3099.3,3098.8,0.00080552]
[1768043294326,1.26848142,3099.2,3098.8,0.00080552]
[1768043294542,0.96564944,3099.2,3098.8,0.00080552]
[1768043302159,0.96564944,3099.2,3099.1,0.001]
[1768043302460,1.26854355,3099.2,3098.8,0.00080552]
[1768043302648,0.96564944,3099.2,3098.8,0.00080552]
[1768043312170,0.254,3099.4,3098.8,0.00080552]
[1768043312375,0.30289598,3099.3,3098.8,0.00080552]
[1768043312551,0.30289598,3099.2,3098.8,0.00080552]
[1768043312750,1.21964944,3099.4,3098.8,0.00080552]
[1768043313074,0.30289593,3099.3,3098.8,0.00080552]
[1768043313272,0.30289593,3099.2,3098.8,0.00080552]
[1768043313573,0.9054069,3099.3,3098.8,0.00080552]
[1768043313777,0.30289593,3099.2,3099.1,0.001]
[1768043316177,0.0008016,3099.5,3099.1,0.001]
[1768043316385,0.254,3099.2,3099.1,0.001]
[1768043328674,1.1594069,3099.2,3099.1,0.001]
[1768043328978,1.1594069,3099.2,3098.8,0.00080552]
[1768043337076,1.1594069,3099.2,3099.1,0.001]
[1768043337394,1.1594069,3099.2,3098.8,0.00080552]
[1768043349109,1.1594069,3099.2,3099.1,0.001]
[1768043356987,1.1594069,3099.2,3098.8,0.00080552]
[1768043358409,0.92635285,3099.1,3098.8,0.00080552]
[1768043377252,0.254,3099.1,3098.8,0.00080552]
[1768043377559,0.254,3099.2,3098.8,0.82212695]
[1768043381454,0.254,3099.2,3098.8,0.00080552]
[1768043384561,0.254,3099.2,3099.1,0.001]
[1768043385257,0.5568754,3099.2,3099.1,0.001]
[1768043386355,0.254,3099.2,3099.1,0.001]
[1768043386857,0.98171497,3099.5,3099.1,0.001]
[1768043386858,0.254,3099.3,3099.1,0.001]
[1768043389363,0.98171497,3099.5,3099.1,0.001]
[1768043389570,0.254,3099.3,3099.1,0.001]
[1768043391335,0.2548016,3099.5,3099.1,0.001]
[1768043391542,0.30276875,3099.4,3099.1,0.001]
[1768043391871,0.2548016,3099.5,3099.1,0.001]
[1768043392077,0.30276657,3099.4,3099.1,0.001]
[1768043392252,0.2548016,3099.5,3099.1,0.001]
[1768043392457,0.30274538,3099.4,3099.1,0.001]
[1768043392643,0.2548016,3099.5,3099.1,0.001]
[1768043392843,0.30274535,3099.4,3099.1,0.001]
[1768043393044,0.2548016,3099.5,3099.1,0.001]
[1768043393240,0.30274535,3099.4,3099.1,0.001]
[1768043393445,0.2548016,3099.5,3099.1,0.001]
[1768043393682,0.30272831,3099.4,3099.1,0.001]
[1768043393860,0.2548016,3099.5,3099.1,0.001]
[1768043394159,0.30272831,3099.4,3099.1,0.001]
[1768043394357,0.2548016,3099.5,3099.1,0.001]
[1768043396175,0.002,3099.2,3099.1,0.001]
[1768043411676,0.0028016,3099.5,3099.1,0.001]
[1768043412168,0.0028016,3099.5,3099.1,0.9613169]
[1768043419408,0.0008032,3099.8,3099.2,0.82132143]
[1768043420013,0.0008032,3099.8,3099.3,1.78946155]
[1768043420389,0.0008032,3099.8,3099.3,0.82132143]
[1768043420891,0.0008032,3099.8,3099.4,0.96814012]
[1768043421987,0.00080715,3100.0,3099.4,0.96894412]
[1768043422406,0.00080715,3100.0,3099.4,0.000804]
[1768043422800,0.00080715,3100.0,3099.5,0.96814012]
[1768043423127,0.00080715,3100.0,3099.5,1.78946155]
[1768043423325,0.00080715,3100.0,3099.5,5.01578756]
[1768043423544,0.00080715,3100.0,3099.6,0.82132143]
[1768043423995,0.00080715,3100.0,3099.6,0.96814012]
[1768043425118,0.00080715,3100.0,3099.6,4.19435013]
[1768043426706,1.25673504,3100.3,3099.6,4.19435013]
[1768043427029,1.25673504,3100.3,3099.6,3.22621001]
[1768043427324,1.25673504,3100.3,3099.7,0.96809325]
[1768043429113,0.00280408,3100.3,3099.7,1.78941468]
[1768043429337,0.00280408,3100.3,3099.8,0.82132143]
[1768043429622,0.00280408,3100.3,3099.8,4.04730272]
[1768043430026,0.00280408,3100.3,3099.9,0.9679933]
[1768043434598,0.002,3100.0,3099.9,0.9679933]
[1768043434841,0.00280408,3100.3,3099.9,0.9679933]
[1768043446555,0.002,3100.0,3099.9,0.9679933]
[1768043447821,0.00280408,3100.3,3099.9,0.9679933]
[1768043449642,0.98247702,3100.3,3099.9,0.9679933]
[1768043452470,0.97669398,3100.6,3099.9,0.9679933]
[1768043452643,0.97469398,3100.4,3099.9,0.96879746]
[1768043453040,0.76147968,3100.4,3099.9,0.00080416]
[1768043453565,0.76147968,3100.4,3100.0,0.96795269]
[1768043458677,0.76147968,3100.4,3100.2,0.001]
[1768043459472,0.76147968,3100.4,3100.2,0.76247968]
[1768043460573,0.76147968,3100.4,3100.2,0.001]
[1768043471286,0.76147968,3100.4,3099.9,0.00080416]
[1768043472288,0.92331344,3100.2,3099.9,0.00080416]
[1768043472589,0.92331344,3100.1,3099.9,0.00080416]
[1768043510543,0.92331344,3100.1,3099.7,0.001]
[1768043510745,0.000804,3099.8,3099.4,5.01369942]
[1768043518365,0.002,3099.5,3099.4,5.01369942]
[1768043518654,0.002804,3099.8,3099.4,5.01369942]
[1768043520759,0.002804,3099.8,3099.5,0.97531159]
[1768043522280,0.002804,3099.8,3099.5,4.20161605]
[1768043523254,0.002,3099.8,3099.5,4.20161605]
[1768043523463,0.00080401,3099.8,3099.5,4.20161605]
[1768043527169,0.00080401,3099.8,3099.5,0.97531159]
[1768043527363,0.00080401,3099.8,3099.4,4.19530827]
[1768043528474,0.00080401,3099.8,3099.4,5.13691217]
[1768043543192,0.00080401,3099.8,3099.7,0.001]
[1768043565125,0.9663685,3099.8,3099.4,0.0008048]
[1768043565809,0.9663685,3099.8,3099.1,0.0018024]
[1768043566139,0.96556449,3099.6,3099.1,0.0018024]
[1768043570542,0.96556449,3099.4,3099.1,0.0018024]
[1768043580944,0.254,3099.6,3099.1,0.0018024]
[1768043583045,0.00160881,3099.8,3099.1,0.93138018]
[1768043584128,0.00160881,3099.8,3099.2,0.90344495]
[1768043584867,0.00160881,3099.8,3099.3,4.12997997]
[1768043585462,0.00160881,3099.8,3099.3,0.90344495]
[1768043587347,0.00160881,3099.8,3099.3,4.12995288]
[1768043587765,0.00160881,3099.8,3099.4,0.90344495]
[1768043588363,0.00160881,3099.8,3099.5,0.96809325]
[1768043591574,0.00160881,3099.8,3099.6,3.22622273]
[1768043600681,0.00160881,3099.8,3099.5,3.22632682]
[1768043604492,0.00160881,3099.8,3099.4,3.22641014]
[1768043605681,0.00160881,3099.8,3099.4,6.45284106]
[1768043615495,0.002,3099.5,3099.4,6.45284106]
[1768043615794,0.00160881,3099.8,3099.4,3.22641014]
[1768043625211,0.00160881,3099.8,3099.4,6.45284106]
[1768043627283,0.002,3099.5,3099.4,3.22641014]
[1768043627478,0.00160881,3099.8,3099.4,3.22641014]
[1768043638120,0.90866644,3099.8,3099.4,3.22641014]
[1768043639330,0.90866644,3099.8,3099.2,6.45327826]
[1768043639820,0.90866644,3099.8,3099.2,7.42137151]
[1768043640024,0.002,3099.5,3099.2,7.42137151]
[1768043640231,0.90866644,3099.8,3099.2,7.42137151]
[1768043645496,0.90866644,3099.8,3099.2,4.19473238]
[1768043645697,0.90866644,3099.8,3099.2,3.22663913]
[1768043648744,0.90866644,3099.8,3099.2,6.45327826]
[1768043651718,0.90866644,3099.8,3099.2,3.22663913]
[1768043651911,0.90866644,3099.8,3099.5,0.001]
[1768043680307,0.00160881,3099.8,3099.5,0.001]
[1768043684711,0.98706152,3099.8,3099.5,0.001]
[1768043698125,0.00160881,3099.8,3099.5,0.001]
[1768043776012,0.93550851,3099.9,3099.5,0.001]
[1768043776309,0.93550851,3099.9,3099.6,0.93550851]
[1768043784419,0.93750851,3099.9,3099.6,0.93550851]
[1768043798638,0.002,3099.9,3099.6,4.16172969]
[1768043799009,0.002,3099.9,3099.6,3.22622118]
[1768043799410,0.002,3099.9,3099.7,0.94230257]
[1768043800242,0.19718792,3100.0,3099.7,0.94230257]
[1768043800731,0.19718792,3100.0,3099.7,4.16832558]
[1768043800732,1.13949049,3100.0,3099.7,4.16832558]
[1768043801110,1.13949049,3100.0,3099.7,3.22602301]
[1768043801642,1.13949049,3100.0,3099.8,0.96809325]
[1768043803542,0.00080416,3100.3,3099.8,4.19405292]
[1768043803747,0.94310673,3100.3,3099.8,7.4200675]
[1768043803910,0.94310673,3100.3,3099.8,6.45197425]
[1768043804111,0.79574631,3100.3,3099.8,6.45197425]
[1768043804331,0.79574631,3100.3,3099.9,0.94391097]
[1768043804824,0.79574631,3100.3,3099.9,0.00080424]
[1768043805148,0.79574631,3100.3,3100.0,0.79574631]
[1768043806115,1.19630257,3100.5,3100.0,0.79574631]
[1768043809229,0.002,3100.3,3100.0,0.79574631]
[1768043810854,0.9301449,3100.3,3100.0,0.79574631]
[1768043811060,0.9301449,3100.3,3099.9,0.00080424]
[1768043811551,0.002,3100.3,3099.9,0.00080424]
[1768043814151,1.14157388,3100.3,3099.9,0.00080424]
[1768043820751,1.14157388,3100.3,3100.2,0.001]
[1768043826954,0.21342898,3100.3,3100.2,0.001]
[1768043828362,0.002,3100.3,3100.2,0.001]
[1768043874124,0.96497924,3100.2,3099.9,0.00080424]
[1768043874629,0.96497924,3100.0,3099.9,0.00080424]
[1768043875259,1.21897924,3100.0,3099.9,0.00080424]
[1768043877226,0.96497924,3099.9,3099.4,0.0008056]
[1768043883543,1.38642634,3099.8,3099.4,0.0008056]
[1768043883837,0.94194639,3099.7,3099.4,0.0008056]
[1768043884036,0.94194639,3099.4,3098.4,3.22844464]
[1768043884242,0.0008008,3099.1,3098.5,0.12912035]
[1768043884534,0.94274719,3099.1,3098.5,0.12912035]
[1768043884737,0.94274719,3099.1,3098.4,3.2283919]
[1768043884903,0.94274719,3099.1,3098.4,4.17114381]
[1768043885204,1.01617945,3099.0,3098.4,0.94375191]
[1768043885401,1.01617945,3099.0,3098.4,0.001]
[1768043885402,0.07423306,3098.8,3098.4,0.001]
[1768043886030,0.30181393,3098.7,3098.4,0.001]
[1768043886301,0.07423306,3098.8,3098.4,0.001]
[1768043886302,0.30181393,3098.6,3098.4,0.001]
[1768043886632,0.30181393,3098.5,3098.4,0.001]
[1768043889015,0.30181393,3098.5,3098.2,0.0008016]
[1768043889205,0.30181393,3098.4,3098.2,0.0008016]
[1768043889440,0.30181393,3098.3,3098.2,0.0008016]
[1768043890428,0.30181393,3098.3,3098.1,0.001]
[1768043890631,0.30181393,3098.2,3098.1,0.001]
[1768043905979,0.254,3098.4,3098.1,0.001]
[1768043909483,0.254,3098.4,3098.0,0.00080592]
[1768043922195,1.17926194,3098.4,3098.0,0.00080592]
[1768043923789,0.92526194,3098.3,3098.0,0.00080592]
[1768043925575,0.002,3098.1,3098.0,0.00080592]
[1768043945409,0.002,3098.1,3098.0,0.97856349]
[1768043957449,0.002,3098.1,3098.0,0.00080592]
[1768043959749,0.002,3098.1,3098.0,3.22869488]
[1768043959924,0.002,3098.1,3098.0,0.00080592]
[1768043981272,0.91479773,3098.3,3098.0,0.00080592]
[1768043986281,0.256,3098.4,3098.0,0.00080592]
[1768043988254,0.002,3098.4,3098.0,0.00080592]
[1768043988454,0.256,3098.4,3098.0,0.00080592]
[1768043990685,0.91479773,3098.3,3098.0,0.00080592]
[1768043991585,0.256,3098.4,3098.0,0.00080592]
[1768043995590,1.23925819,3098.4,3098.0,0.00080592]
[1768043996396,0.98325819,3098.1,3096.8,0.0008056]
[1768043996594,0.98325819,3097.7,3096.9,0.96153986]
[1768043996759,0.254,3097.6,3097.0,0.96234066]
[1768043999064,0.254,3097.6,3097.1,3.22882696]
[1768044001170,0.0008008,3097.8,3097.1,0.96153986]
[1768044001377,0.0008008,3097.8,3097.4,0.96153986]
[1768044004706,0.0008008,3097.8,3097.4,4.19005311]
[1768044006274,0.0008008,3097.8,3097.4,0.96153986]
[1768044006793,0.0008008,3097.8,3097.3,3.22859128]
[1768044007475,0.0008008,3097.8,3097.2,4.16387325]
[1768044007974,0.0008008,3097.8,3097.3,3.22859944]
[1768044008385,0.0008008,3097.8,3097.3,4.1637959]
[1768044009109,0.0008008,3097.8,3097.6,0.001]
[1768044021328,0.0028008,3097.8,3097.6,0.001]
[1768044050041,0.2568008,3097.8,3097.6,0.001]
[1768044068845,0.97863792,3097.7,3097.6,0.001]
[1768044069167,0.97863792,3097.7,3097.0,0.0008008]
[1768044069168,0.254,3097.7,3097.0,0.93152282]
[1768044070366,0.002,3097.5,3097.0,0.93152282]
[1768044071745,0.002,3097.5,3097.2,0.93072202]
[1768044076658,0.002,3097.5,3097.2,4.15941032]
[1768044079750,9.784e-05,3097.5,3097.2,4.15941032]
[1768044080388,0.0028008,3097.8,3097.2,4.15941032]
[1768044080677,0.2568008,3097.8,3097.2,4.15941032]
[1768044083776,0.002,3097.5,3097.2,4.15941032]
[1768044086679,4.7e-07,3097.5,3097.2,4.15941032]
[1768044087688,0.2568008,3097.8,3097.2,4.15941032]
[1768044088181,0.002,3098.1,3097.4,0.93152362]
[1768044088380,0.256,3098.1,3097.4,0.93152362]
[1768044088573,0.256,3098.1,3097.5,0.93072202]
[1768044090872,0.256,3098.1,3097.5,4.15907264]
[1768044093755,0.002,3098.1,3097.6,0.96209561]
[1768044093960,0.00160784,3098.2,3097.8,0.96209561]
[1768044095186,0.00160784,3098.2,3097.8,4.1901015]
[1768044096482,0.002,3098.1,3097.8,4.1901015]
[1768044096654,0.00160784,3098.2,3097.8,4.1901015]
[1768044098284,0.91185347,3098.2,3097.8,3.22800589]
[1768044098785,0.00160784,3098.2,3097.8,3.22800589]
[1768044099490,0.00160784,3098.2,3097.8,4.1901015]
[1768044099662,0.00160784,3098.2,3097.9,0.96209561]
[1768044100292,0.00160784,3098.2,3097.8,3.22800589]
[1768044100591,0.91185347,3098.2,3097.8,3.22800589]
[1768044100784,0.90985348,3098.2,3097.8,3.22961461]
[1768044100989,0.91305155,3098.4,3097.8,3.22961461]
[1768044101789,0.00280592,3098.4,3097.8,4.19171022]
[1768044101994,0.91024563,3098.3,3097.8,3.22961461]
[1768044104463,0.91024563,3098.3,3097.8,0.00160872]
[1768044105080,0.00280592,3098.4,3097.9,0.96209561]
[1768044108697,0.00280592,3098.4,3098.1,0.001]
[1768044121116,0.0008016,3098.6,3098.1,0.001]
[1768044121286,0.90664555,3098.5,3098.1,0.001]
[1768044121487,0.0028008,3099.1,3098.1,0.001]
[1768044121687,0.254,3099.0,3098.2,0.0008024]
[1768044121910,0.254,3099.0,3098.3,0.99429877]
[1768044122215,0.254,3099.0,3098.4,0.99429877]
[1768044124314,0.254,3099.0,3098.5,0.91794012]
[1768044126420,0.0028008,3099.1,3098.6,0.91794012]
[1768044126715,0.254,3099.0,3098.6,0.91794012]
[1768044132134,0.002,3098.7,3098.6,0.91794012]
[1768044136847,0.002,3098.7,3098.4,0.91794012]
[1768044137341,0.002,3098.7,3098.4,4.14540966]
[1768044140142,0.002,3098.7,3098.4,0.91794012]
[1768044140562,0.002,3098.7,3098.2,4.14639597]
[1768044140726,0.002,3098.7,3098.2,3.22845585]
[1768044141742,0.002,3098.7,3098.2,0.0008024]
[1768044144960,0.002,3098.7,3098.5,0.001]
[1768044193414,0.002,3098.7,3098.5,0.98306894]
[1768044193576,0.002,3098.7,3098.5,0.001]
[1768044193915,0.002,3098.7,3098.2,0.0008024]
[1768044193916,0.07423306,3098.6,3098.2,0.0008024]
[1768044194119,0.254,3098.5,3098.2,0.0008024]
[1768044195710,0.60974237,3098.5,3098.2,0.0008024]
[1768044202997,0.60974237,3098.5,3098.2,0.98287134]
[1768044203197,0.60974237,3098.5,3098.2,0.0008024]
[1768044204911,0.68397543,3098.5,3098.1,0.001]
[1768044208192,0.68397543,3098.5,3098.1,0.98306894]
[1768044208392,0.4123115,3098.4,3098.0,0.000806]
[1768044208802,0.39120509,3098.4,3098.0,0.000806]
[1768044209004,0.39120509,3098.4,3098.0,0.98287494]
[1768044209206,0.4123115,3098.4,3098.0,0.000806]
[1768044209610,0.39120509,3098.4,3098.0,0.000806]
[1768044210903,0.4123115,3098.4,3098.0,0.000806]
[1768044211215,0.39120509,3098.4,3098.0,0.000806]
[1768044211622,0.4123115,3098.4,3098.0,0.000806]
[1768044215205,0.39120509,3098.4,3098.0,0.000806]
[1768044216413,0.39120509,3098.4,3098.3,0.001]
[1768044216626,0.39120509,3098.4,3098.1,0.4289519]
[1768044216837,0.39120509,3098.4,3098.1,0.40684514]
[1768044218033,0.254,3098.3,3098.1,0.40684514]
[1768044220195,0.0008024,3098.6,3098.1,0.40684514]
[1768044220396,0.254,3098.5,3098.1,0.40684514]
[1768044223327,0.0008024,3098.6,3098.1,0.40684514]
[1768044223507,0.254,3098.5,3098.1,0.40684514]
[1768044223708,0.0008024,3098.6,3098.1,0.40684514]
[1768044223908,0.254,3098.5,3098.1,0.40684514]
[1768044228332,0.002,3098.2,3098.1,0.40684514]
[1768044258869,0.002,3098.2,3098.0,0.000806]
[1768044260667,0.002,3098.2,3098.1,0.92272459]
[1768044275446,0.002,3098.2,3098.0,0.000806]
[1768044276676,0.55421317,3098.2,3098.0,0.000806]
[1768044279160,0.002,3098.2,3098.0,0.000806]
[1768044302979,0.254,3098.1,3098.0,0.000806]
[1768044303886,0.80621317,3098.1,3098.0,0.000806]
[1768044304100,0.80621317,3098.1,3097.5,0.001]
[1768044304101,0.55221317,3098.0,3097.5,0.001]
[1768044304305,0.403403,3097.9,3097.5,0.001]
[1768044305213,0.80621317,3098.1,3097.5,0.001]
[1768044310621,4.03402236,3098.1,3097.5,0.001]
[1768044310921,4.03402236,3098.1,3097.8,0.001]
[1768044311218,0.002,3097.8,3097.5,0.001]
[1768044326540,0.002,3097.8,3097.5,0.95973989]
[1768044330349,0.002,3097.8,3097.5,0.001]
[1768044343944,0.38021692,3097.8,3097.5,0.001]
[1768044344140,0.38021692,3097.8,3097.6,0.97093773]
[1768044344625,0.002,3097.8,3097.6,0.97093773]
[1768044345952,0.002,3097.8,3097.5,0.001]
[1768044356271,0.002,3097.8,3097.4,0.0008016]
[1768044357376,0.002,3097.8,3097.4,0.95440441]
[1768044366994,0.254,3097.7,3097.4,0.95440441]
[1768044380702,0.254,3097.7,3097.4,0.0008016]
[1768044420037,0.94462333,3097.6,3096.8,0.0008056]
[1768044420211,0.254,3097.7,3096.8,0.0008056]
[1768044420212,0.94462333,3097.3,3096.8,0.0008056]
[1768044420536,0.254,3097.2,3096.8,0.0008056]
[1768044420939,0.0008008,3097.4,3096.8,0.0008056]
[1768044421244,0.0028016,3097.8,3097.3,0.93607892]
[1768044422220,0.0028016,3097.8,3097.5,0.93607892]
[1768044426517,0.0028016,3097.8,3097.5,4.16440966]
[1768044448650,0.0028016,3097.8,3097.6,0.94417703]
[1768044448851,0.0028016,3097.8,3097.6,4.17245059]
[1768044450541,0.0028016,3097.8,3097.6,3.22827356]
[1768044451762,0.0028016,3097.8,3097.5,3.22841]
[1768044460773,0.0028016,3097.8,3097.5,7.37639654]
[1768044466291,0.0028016,3097.8,3097.5,4.14798654]
[1768044467092,0.0028016,3097.8,3097.5,3.22841]
[1768044469309,0.0028016,3097.8,3097.4,3.22848777]
[1768044470592,0.0028016,3097.8,3097.4,7.37657854]
[1768044470910,0.0028016,3097.8,3097.5,0.91957654]
[1768044471396,0.0028016,3097.8,3097.4,6.457002]
[1768044472192,0.0028016,3097.8,3097.4,3.22848777]
[1768044475213,0.89710567,3097.9,3097.4,3.22848777]
[1768044475369,0.89710567,3097.9,3097.4,3.22929017]
[1768044477083,0.89710567,3097.9,3097.4,0.0008024]
[1768044477802,0.002,3097.6,3097.4,0.0008024]
[1768044504780,0.002,3097.6,3097.4,3.22931663]
[1768044510702,0.002,3097.6,3097.4,0.0008024]
[1768044573491,0.002,3097.6,3097.4,0.91092098]
[1768044574568,0.002,3097.6,3097.4,0.0008024]
[1768044602834,0.96921135,3097.6,3097.4,0.0008024]
[1768044603837,0.002,3097.6,3097.4,0.0008024]
[1768044621972,0.92258054,3097.6,3097.4,0.0008024]
[1768044624177,0.002,3097.9,3097.5,0.94597101]
[1768044625278,0.002,3097.9,3097.5,1.13752896]
[1768044625932,0.002,3097.9,3097.5,4.36591891]
[1768044626787,0.002,3097.9,3097.6,0.94597101]
[1768044627948,0.002,3097.9,3097.6,4.17424538]
[1768044628551,0.97241477,3098.2,3097.9,0.94597101]
[1768044628775,0.00360872,3098.2,3097.9,0.94597101]
[1768044629267,0.00360872,3098.2,3097.8,0.96868718]
[1768044629474,0.00360872,3098.2,3097.7,0.94597101]
[1768044629650,0.00360872,3098.2,3097.9,0.256]
[1768044631883,1e-08,3098.2,3098.0,0.94597101]
[1768044632083,0.000806,3098.4,3098.0,0.94597101]
[1768044633083,0.000806,3098.4,3097.9,3.48399103]
[1768044634386,0.002,3098.2,3097.9,3.48399103]
[1768044636105,0.002,3098.2,3097.9,4.46608632]
[1768044636305,0.002,3098.2,3097.9,4.21008632]
[1768044636679,0.002,3098.2,3098.0,0.256]
[1768044638069,0.002,3098.2,3098.0,1.23809529]
[1768044639706,0.002,3098.2,3098.1,4.20988006]
[1768044641781,0.24962025,3098.7,3098.2,0.0008032]
[1768044642670,1.23180865,3098.7,3098.2,0.0008032]
[1768044643501,1.11133543,3098.9,3098.2,0.98289849]
[1768044643675,0.254,3098.9,3098.2,0.98289849]
[1768044646017,0.9841884,3099.0,3098.3,3.22757641]
[1768044646313,0.254,3098.9,3098.3,3.22757641]
[1768044646713,0.002,3098.6,3098.3,3.22757641]
[1768044646892,0.002,3098.6,3098.3,4.2096717]
[1768044647482,0.002,3098.6,3098.2,0.96934027]
[1768044647683,0.002,3098.6,3098.2,4.19701443]
[1768044648524,0.002,3098.6,3098.2,0.96934027]
[1768044649197,0.002,3098.6,3098.2,4.19701736]
[1768044652112,0.002,3098.6,3098.3,0.92578799]
[1768044652634,0.002,3098.6,3098.3,1.89432193]
[1768044654626,0.002,3098.6,3098.3,5.12187642]
[1768044656722,0.002,3098.6,3098.3,4.40734248]
[1768044659423,0.002,3098.6,3098.3,1.17978799]
[1768044659603,0.002,3098.6,3098.3,0.254]
[1768044662523,0.002,3098.6,3098.3,1.17978799]
[1768044662926,0.002,3098.6,3098.3,0.254]
[1768044671101,0.002,3098.6,3098.3,4.3845883]
[1768044671307,0.002,3098.6,3098.4,0.90302907]
[1768044672003,0.002,3098.6,3098.4,1.03216567]
[1768044673640,0.002,3098.6,3098.4,4.25954004]
[1768044675710,0.002,3098.6,3098.4,3.35651097]
[1768044684553,0.002,3098.6,3098.3,3.22757641]
[1768044693964,0.002,3098.6,3098.2,3.22848378]
[1768044698166,0.002,3098.6,3098.2,0.0008032]
[1768044698355,0.9872938,3098.6,3098.2,0.0008032]
[1768044706774,0.9872938,3098.6,3098.5,0.001]
[1768044709676,0.002,3098.6,3098.5,0.001]
[1768044765693,0.002,3098.6,3098.5,0.96266949]
[1768044768996,0.002,3098.6,3098.5,0.001]
[1768044777987,0.002,3098.6,3098.5,0.98251652]
[1768044783702,0.002,3098.6,3098.5,0.001]
[1768044786215,0.98473269,3098.6,3098.5,0.001]
[1768044789889,0.256,3098.9,3098.5,0.001]
[1768044790088,0.5344698,3098.8,3098.5,0.001]
[1768044791017,0.256,3098.9,3098.5,0.93558521]
[1768044791820,0.256,3098.9,3098.6,0.93458521]
[1768044802605,0.256,3098.9,3098.5,0.001]
[1768044807936,0.256,3098.9,3098.5,0.93558521]
[1768044812235,0.002,3098.6,3098.5,0.93558521]
[1768044823559,0.002,3098.6,3098.5,0.001]
[1768044824027,0.002,3098.6,3098.5,0.92637961]
[1768044839057,0.002,3098.6,3098.5,0.001]
[1768044863693,0.002,3098.6,3098.2,0.0008032]
[1768044863853,0.39974384,3098.6,3098.0,0.00080608]
[1768044864191,0.40054704,3098.6,3098.0,0.95490226]
[1768044864361,0.0028032,3098.6,3098.0,0.95490226]
[1768044866055,0.0028032,3098.6,3098.0,4.18274288]
[1768044866785,0.0028032,3098.6,3098.1,0.96858397]
[1768044871187,0.0028032,3098.6,3098.3,0.001]
[1768044875024,0.254,3098.5,3098.1,0.96858397]
[1768044875170,4.22943835,3098.5,3098.0,0.00080608]
[1768044875485,1.0689396,3098.4,3097.8,0.0016096]
[1768044875686,3.44257815,3098.2,3097.7,0.001]
[1768044876977,0.96879041,3098.1,3097.7,0.001]
[1768044877164,0.254,3098.0,3097.7,0.001]
[1768044878171,0.96879041,3097.9,3097.7,0.001]
[1768044888620,1.50326021,3097.9,3097.4,0.0008024]
[1768044888774,2.00176827,3097.9,3097.4,0.0008024]
[1768044889174,1.03297786,3097.9,3097.4,0.0008024]
[1768044889388,0.9688436,3097.8,3097.4,0.0008024]
[1768044893827,0.9688436,3097.8,3097.5,0.91980154]
[1768044894028,0.254,3098.0,3097.5,0.91980154]
[1768044894315,0.91980154,3097.9,3097.5,0.91980154]
[1768044894490,0.91980154,3097.9,3097.7,0.40980154]
[1768044894811,0.91980154,3097.9,3097.7,0.39116491]
[1768044895117,0.91980154,3097.9,3097.4,0.92060394]
[1768044897124,0.254,3098.0,3097.4,0.92060394]
[1768044897589,1.22284673,3098.0,3097.4,0.92060394]
[1768044897788,1.44493425,3098.0,3097.4,0.92060394]
[1768044906692,1.44493425,3098.0,3097.7,0.001]
[1768044907499,1.44693425,3098.0,3097.7,0.001]
[1768044908331,1.44693425,3098.0,3097.4,0.92060394]
[1768044920440,1.44693425,3098.0,3097.7,0.001]
[1768044920639,0.46747401,3097.9,3097.4,0.92060394]
[1768044920837,0.002,3097.7,3097.4,0.92060394]
[1768044923809,0.002,3097.7,3097.4,0.0008024]
[1768044950853,4.20425272,3097.9,3097.4,0.0008024]
[1768044953371,3.22801306,3097.9,3097.4,0.0008024]
[1768044956152,3.22801306,3097.9,3097.7,0.001]
[1768044956496,0.79194355,3097.8,3097.4,0.0008024]
[1768044958777,4.02005219,3097.8,3097.4,0.0008024]
[1768044960787,8.23360584,3097.8,3097.4,0.0008024]
[1768044960946,0.98544501,3097.7,3097.0,0.0008016]
[1768044962289,0.98544501,3097.3,3096.8,0.0008056]
[1768044962577,0.254,3097.2,3096.8,0.95245134]
[1768044964003,0.0008016,3097.4,3096.8,0.0008056]
[1768044964282,0.254,3097.2,3096.8,0.0008056]
[1768044965266,0.25200001,3097.2,3096.8,0.0008056]
[1768044965770,0.25000002,3097.2,3096.8,0.0008056]
[1768044966765,0.93866882,3097.1,3096.8,0.0008056]
[1768044966970,0.25000002,3097.2,3096.8,0.92218766]
[1768044968115,0.25000002,3097.2,3097.1,0.001]
[1768044968602,0.25000002,3097.2,3096.8,0.0008056]
[1768044969808,0.69181514,3097.2,3096.8,0.0008056]
[1768044970799,1.63048396,3097.2,3096.8,0.0008056]
[1768044974709,4.85921001,3097.2,3096.8,0.0008056]
[1768044974862,3.92054119,3097.2,3096.8,0.0008056]
[1768044975716,7.15007284,3097.2,3096.6,0.0008008]
[1768044975901,0.39205412,3097.1,3096.6,0.92218286]
[1768044976080,0.93866882,3097.0,3096.6,0.0008008]
[1768044976705,3.62089969,3097.1,3096.6,0.0008008]
[1768044976904,0.43135204,3097.0,3096.6,0.0008008]
[1768044977679,1.37002086,3097.0,3096.3,0.92138206]
[1768044977921,1.37082166,3097.0,3096.3,0.92138206]
[1768044978218,0.43215284,3097.0,3096.3,0.92138206]
[1768044978377,3.66114942,3097.0,3096.3,0.92138206]
[1768044978579,3.66114942,3097.0,3096.2,0.0008008]
[1768044978580,1.66687373,3096.9,3096.2,0.0008008]
[1768044978972,1.66687373,3096.9,3096.2,0.92218286]
[1768044981407,1.66687373,3096.9,3096.5,0.002]
[1768044983779,0.72820491,3096.9,3096.5,0.92338206]
[1768044984992,0.0008008,3097.0,3096.5,0.92338206]
[1768044992719,0.254,3096.9,3096.5,0.92338206]